bitfinex-derivatives/quotes_BNBF0:USTF0_20250511
["timestamp","ask_amount","ask_price","bid_price","bid_amount"]
[1746939637232,0.50523684,667.03,666.04,0.30028226]
[1746939637534,0.24411868,667.02,666.04,0.30028226]
[1746939637832,0.24411868,667.01,666.04,0.30028226]
[1746939638233,0.24411868,667.02,666.04,0.30028226]
[1746939638833,0.24411868,667.01,666.04,0.30028226]
[1746939639233,0.24411868,667.0,666.04,0.30028226]
[1746939639633,0.24411868,666.99,666.04,0.30028226]
[1746939639929,0.24411868,666.98,666.04,0.30028226]
[1746939640133,0.50520157,666.98,666.04,0.30028226]
[1746939640333,0.24411868,666.97,666.04,0.30028226]
[1746939640731,0.24411868,666.96,666.04,0.30028226]
[1746939641136,0.24411868,666.97,666.04,0.30028226]
[1746939646235,0.26107996,666.96,666.04,0.30028226]
[1746939648036,0.24411868,666.95,666.04,0.30028226]
[1746939649342,0.26106429,666.94,666.04,0.30028226]
[1746939649641,0.24411868,666.93,666.04,0.30028226]
[1746939652540,0.26107702,666.98,666.04,0.30028226]
[1746939652746,0.24411868,666.97,666.04,0.30028226]
[1746939653245,0.24411868,666.97,666.05,0.58]
[1746939653645,0.24411868,666.97,666.07,0.30026874]
[1746939655247,0.26106233,666.98,666.07,0.30026874]
[1746939655547,0.24411868,666.97,666.07,0.30026874]
[1746939658348,0.24411868,667.5,666.07,0.30026874]
[1746939658747,0.24411868,667.49,666.07,0.30026874]
[1746939659042,0.24411868,667.48,666.07,0.30026874]
[1746939659549,0.24411868,667.47,666.07,0.30026874]
[1746939659849,0.24411868,667.46,666.07,0.30026874]
[1746939660349,0.24411868,667.45,666.07,0.30026874]
[1746939660645,0.26107114,667.55,666.07,0.30026874]
[1746939660952,0.24413148,667.54,666.07,0.30026874]
[1746939661251,1.94388738,667.15,666.07,0.30026874]
[1746939661551,0.24413148,667.14,666.07,0.30026874]
[1746939661851,0.24413148,667.13,666.07,0.30026874]
[1746939662151,0.50522907,667.12,666.07,0.30026874]
[1746939662447,0.24413148,667.11,666.07,0.30026874]
[1746939663153,0.24413148,667.1,666.07,0.30026874]
[1746939663547,0.24413148,667.11,666.07,0.30026874]
[1746939664252,0.24413148,667.14,666.07,0.30026874]
[1746939665253,0.26106918,667.13,666.07,0.30026874]
[1746939665954,0.24413148,667.12,666.07,0.30026874]
[1746939667255,0.24413148,667.11,666.07,0.30026874]
[1746939667652,0.24413148,667.1,666.07,0.30026874]
[1746939667953,0.24413148,667.09,666.07,0.30026874]
[1746939668250,0.24413148,667.08,666.08,0.602]
[1746939669453,0.24413148,667.07,666.08,0.602]
[1746939669855,0.24413148,667.08,666.08,0.602]
[1746939670257,0.26108485,667.06,666.08,0.602]
[1746939670756,0.24413148,667.05,666.08,0.602]
[1746939671056,0.24413148,667.04,666.08,0.602]
[1746939671455,0.24413148,667.03,666.08,0.602]
[1746939671753,0.24413148,667.02,666.08,0.602]
[1746939672056,0.24413148,667.05,666.08,0.602]
[1746939673755,1.94388738,667.01,666.08,0.602]
[1746939673955,0.24413148,667.0,666.08,0.602]
[1746939676156,0.26108094,666.99,666.08,0.602]
[1746939676356,0.24413148,666.98,666.08,0.602]
[1746939677753,0.26108094,666.99,666.08,0.602]
[1746939678353,0.24422717,666.98,666.08,0.602]
[1746939679457,0.24422717,667.5,666.08,0.602]
[1746939679854,0.24422717,667.49,666.08,0.602]
[1746939680154,0.26103981,667.48,666.08,0.602]
[1746939680360,0.24422717,667.47,666.08,0.602]
[1746939680759,0.24422717,667.46,666.08,0.602]
[1746939681162,0.24422717,667.45,666.08,0.602]
[1746939681561,0.24422717,667.44,666.08,0.602]
[1746939681863,0.24422717,667.43,666.08,0.602]
[1746939682158,0.24422717,667.42,666.08,0.602]
[1746939682363,0.50526698,667.42,666.08,0.602]
[1746939682563,0.24422717,667.41,666.08,0.602]
[1746939682868,0.24422717,667.4,666.08,0.602]
[1746939683269,0.24422717,667.39,666.08,0.602]
[1746939683564,0.24422717,667.41,666.08,0.602]
[1746939683769,0.26103981,667.42,666.08,0.602]
[1746939684168,0.24422424,667.41,666.08,0.602]
[1746939684565,0.24422424,667.4,666.08,0.602]
[1746939684869,0.24422424,667.39,666.08,0.602]
[1746939685267,0.24422424,667.38,666.08,0.602]
[1746939685470,0.50525328,667.38,666.08,0.602]
[1746939685671,0.24422424,667.37,666.08,0.602]
[1746939686672,0.24422424,667.36,666.08,0.602]
[1746939687073,0.24422424,667.35,666.08,0.602]
[1746939687274,0.24422424,667.34,666.08,0.602]
[1746939687675,0.24422424,667.37,666.08,0.602]
[1746939688170,0.26101631,667.36,666.08,0.602]
[1746939688675,0.24422424,667.35,666.08,0.602]
[1746939691176,0.24422424,667.5,666.08,0.602]
[1746939691578,0.24422424,667.49,666.08,0.602]
[1746939691979,0.24422424,667.49,666.09,1.16323502]
[1746939692175,0.24422424,667.5,666.09,1.16323502]
[1746939692475,0.26097521,667.48,666.09,1.16323502]
[1746939692678,0.26097521,667.48,666.1,1.16323502]
[1746939693083,0.26097521,667.48,666.11,1.16323502]
[1746939693384,0.26097521,667.48,666.12,1.16323502]
[1746939693988,0.24422424,667.5,666.12,1.16323502]
[1746939694286,0.24422424,668.13,666.13,1.16323502]
[1746939694586,0.24422424,668.12,666.13,1.16323502]
[1746939694780,0.24422424,668.12,666.14,1.16323502]
[1746939694980,0.24422424,668.11,666.14,1.16323502]
[1746939695187,1.94388738,667.99,666.14,1.16323502]
[1746939695386,1.94388738,667.99,666.15,1.16323502]
[1746939695687,0.24422424,667.98,666.16,1.16323502]
[1746939695985,0.24422424,667.97,666.16,1.16323502]
[1746939696282,0.24422424,667.97,666.17,1.16323502]
[1746939696486,0.24422424,667.96,666.08,0.26089988]
[1746939696783,0.24422424,667.95,666.09,1.15871263]
[1746939696982,0.24422424,667.94,666.09,1.62471263]
[1746939697286,0.24422424,667.93,666.09,1.62471263]
[1746939697488,0.24422424,667.93,666.1,1.15871263]
[1746939697685,0.24422424,667.92,666.1,1.15871263]
[1746939697987,0.26089988,668.11,666.09,0.466]
[1746939697988,0.24422424,667.91,666.09,0.466]
[1746939698586,0.24422424,667.9,666.09,0.466]
[1746939699186,0.24422424,667.89,666.09,0.466]
[1746939699990,1.94388738,667.32,666.09,0.466]
[1746939700184,0.24422424,667.31,666.09,0.466]
[1746939701689,1.94388738,667.32,666.09,0.466]
[1746939701989,0.24422561,667.31,666.09,0.466]
[1746939702584,0.24422561,667.87,666.09,0.466]
[1746939702887,0.26097227,667.88,666.09,0.466]
[1746939702888,0.24422561,667.86,666.09,0.466]
[1746939703284,0.24422561,667.85,666.09,0.466]
[1746939703486,0.24422561,667.84,666.09,0.466]
[1746939703789,0.24422561,667.83,666.09,0.466]
[1746939704088,0.24422561,667.82,666.09,0.466]
[1746939704284,0.24422561,667.81,666.09,0.466]
[1746939704489,1.94388738,667.75,666.09,0.466]
[1746939704689,0.24422561,667.74,666.09,0.466]
[1746939704890,0.24422561,667.73,666.09,0.466]
[1746939706189,1.94388738,667.66,666.09,0.466]
[1746939706685,0.24422561,667.65,666.09,0.466]
[1746939706984,0.24422561,667.64,666.09,0.466]
[1746939707190,1.94388738,667.55,666.09,0.466]
[1746939707492,0.24422561,667.54,666.09,0.466]
[1746939707789,0.24422561,667.53,666.09,0.466]
[1746939708090,0.24422561,667.52,666.09,0.466]
[1746939708786,0.24422561,667.51,666.09,0.466]
[1746939709185,0.26099967,667.5,666.09,0.466]
[1746939709490,0.50522528,667.5,666.09,0.466]
[1746939709689,0.24422561,667.49,666.09,0.466]
[1746939709886,0.24422561,667.48,666.09,0.466]
[1746939710190,0.24422561,667.47,666.09,0.466]
[1746939710586,0.24422561,667.46,666.09,0.466]
[1746939711190,0.24422561,667.45,666.09,0.466]
[1746939711590,0.24422561,667.44,666.09,0.466]
[1746939712191,0.24422561,667.43,666.09,0.466]
[1746939712493,0.50522333,667.43,666.09,0.466]
[1746939712693,0.24422561,667.42,666.09,0.466]
[1746939713290,0.24422561,667.41,666.09,0.466]
[1746939713588,0.24422561,667.4,666.09,0.466]
[1746939714088,0.24422561,667.39,666.09,0.466]
[1746939714293,0.24422561,667.38,666.09,0.466]
[1746939714693,0.24422561,667.37,666.09,0.466]
[1746939715193,0.24422561,667.36,666.09,0.466]
[1746939715488,0.50522724,667.36,666.09,0.466]
[1746939715692,0.26100163,667.36,666.09,0.466]
[1746939715992,0.24422561,667.35,666.09,0.466]
[1746939717994,0.24422561,667.34,666.09,0.466]
[1746939718294,0.24422561,667.56,666.09,0.466]
[1746939718494,0.26100457,667.34,666.09,0.466]
[1746939718695,0.24422561,667.55,666.09,0.466]
[1746939718891,0.24422561,667.54,666.09,0.466]
[1746939719295,0.24422561,667.53,666.09,0.466]
[1746939719494,0.50525465,667.53,666.09,0.466]
[1746939719794,1.94388738,667.45,666.09,0.466]
[1746939720097,0.24422561,667.44,666.09,0.466]
[1746939720397,0.24422561,667.43,666.09,0.466]
[1746939720795,0.24422561,667.42,666.09,0.466]
[1746939720991,0.24422561,667.41,666.09,0.466]
[1746939721393,0.24422561,667.4,666.09,0.466]
[1746939721792,0.24422561,667.39,666.09,0.466]
[1746939722098,0.24422561,667.38,666.09,0.466]
[1746939722296,0.50526444,667.38,666.09,0.466]
[1746939722697,0.24422561,667.37,666.09,0.466]
[1746939722898,0.24422561,667.36,666.09,0.466]
[1746939723298,0.24422561,667.35,666.09,0.466]
[1746939723593,0.24422561,667.34,666.09,0.466]
[1746939724000,0.24422561,667.33,666.07,0.30026874]
[1746939724298,0.24422561,667.32,666.07,0.30026874]
[1746939724597,0.24422561,667.31,666.07,0.30026874]
[1746939724796,0.24422561,667.3,666.07,0.30026874]
[1746939725196,0.24422561,667.29,666.07,0.30026874]
[1746939725504,0.24422561,667.28,666.07,0.30026874]
[1746939726100,0.24422561,667.27,666.07,0.30026874]
[1746939726402,0.24422561,667.26,666.07,0.30026874]
[1746939726803,0.24422561,667.25,666.07,0.30026874]
[1746939727300,0.24422561,667.32,666.07,0.30026874]
[1746939727905,0.24422561,667.32,666.08,0.607]
[1746939730207,0.26098695,667.31,666.08,0.607]
[1746939730607,0.24422561,667.3,666.08,0.607]
[1746939734010,0.24422561,667.66,666.08,0.607]
[1746939734209,0.26099282,667.29,666.08,0.607]
[1746939734611,0.24422561,667.28,666.08,0.607]
[1746939734912,0.24422561,667.66,666.08,0.607]
[1746939735307,0.24422561,667.65,666.08,0.607]
[1746939735612,0.24422561,667.64,666.08,0.607]
[1746939735812,0.50521843,667.64,666.08,0.607]
[1746939736013,0.24422561,667.63,666.1,0.30025521]
[1746939736513,0.24422561,667.62,666.1,0.30025521]
[1746939736812,0.24422561,667.61,666.1,0.30025521]
[1746939737014,0.24422561,667.6,666.1,0.30025521]
[1746939737312,0.24422561,667.59,666.1,0.30025521]
[1746939737612,0.24422561,667.58,666.1,0.30025521]
[1746939737909,0.24422561,667.57,666.1,0.30025521]
[1746939738113,1.94388738,667.42,666.1,0.30025521]
[1746939738715,0.24422561,667.41,666.1,0.30025521]
[1746939739113,0.24422561,667.4,666.1,0.30025521]
[1746939739310,0.26101729,667.4,666.1,0.30025521]
[1746939739613,0.24417075,667.39,666.1,0.30025521]
[1746939740114,0.24417075,667.38,666.1,0.30025521]
[1746939740615,0.24417075,667.37,666.1,0.30025521]
[1746939740815,0.24417075,667.39,666.1,0.30025521]
[1746939741415,0.24417075,667.38,666.1,0.30025521]
[1746939741813,0.24417075,667.39,666.1,0.30025521]
[1746939742215,0.26100848,667.38,666.1,0.30025521]
[1746939742819,0.24417075,667.37,666.1,0.30025521]
[1746939743618,0.24417075,667.36,666.1,0.30025521]
[1746939744119,0.24417075,667.35,666.1,0.30025521]
[1746939744418,0.24417075,667.37,666.11,0.735]
[1746939744617,0.24417075,667.36,666.11,0.735]
[1746939744913,0.24417075,667.35,666.11,0.735]
[1746939745318,0.26100555,667.35,666.11,0.735]
[1746939745517,0.24417075,667.34,666.11,0.735]
[1746939746020,0.24417075,667.33,666.11,0.735]
[1746939746418,0.24417075,667.34,666.11,0.735]
[1746939746814,0.24417075,667.33,666.11,0.735]
[1746939747118,0.24417075,667.34,666.11,0.735]
[1746939747820,0.24417075,667.33,666.11,0.735]
[1746939748316,0.24417075,667.32,666.11,0.735]
[1746939748822,0.24417075,667.42,666.11,0.735]
[1746939749119,0.24417075,667.41,666.11,0.735]
[1746939749323,0.50519783,667.41,666.11,0.735]
[1746939749523,0.24417075,667.4,666.11,0.735]
[1746939749822,0.24417075,667.39,666.11,0.735]
[1746939750124,0.24417075,667.4,666.11,0.735]
[1746939750526,0.24417075,667.39,666.11,0.735]
[1746939750921,0.24417075,667.38,666.11,0.735]
[1746939751321,0.24417075,667.37,666.11,0.735]
[1746939751927,0.24417075,667.36,666.11,0.735]
[1746939752227,0.50519098,667.36,666.11,0.735]
[1746939752427,0.50519098,667.36,666.13,0.30024169]
[1746939752627,0.24417075,667.35,666.13,0.30024169]
[1746939752929,0.24417075,667.34,666.13,0.30024169]
[1746939753327,0.24417075,667.33,666.13,0.30024169]
[1746939753528,0.24417075,667.32,666.13,0.30024169]
[1746939754230,0.50521839,667.31,666.13,0.30024169]
[1746939754729,0.24417075,667.3,666.13,0.30024169]
[1746939755224,0.24417075,667.29,666.13,0.30024169]
[1746939755528,0.24417075,667.28,666.13,0.30024169]
[1746939755929,0.24417075,667.27,666.13,0.30024169]
[1746939756227,0.24417075,667.26,666.13,0.30024169]
[1746939756529,0.24417075,667.25,666.13,0.30024169]
[1746939756728,0.24417075,667.24,666.13,0.30024169]
[1746939757330,0.24417075,667.3,666.13,0.30024169]
[1746939757629,0.24417075,667.29,666.13,0.30024169]
[1746939758028,0.24417075,667.28,666.13,0.30024169]
[1746939758329,0.50522525,667.28,666.13,0.30024169]
[1746939758529,0.24417075,667.27,666.13,0.30024169]
[1746939759034,0.24417075,667.26,666.13,0.30024169]
[1746939759331,0.24417075,667.25,666.13,0.30024169]
[1746939759625,0.24417075,667.24,666.13,0.30024169]
[1746939759932,0.24417075,667.23,666.13,0.30024169]
[1746939760232,0.26105156,667.23,666.13,0.30024169]
[1746939760532,0.24417075,667.22,666.13,0.30024169]
[1746939761029,0.24417075,667.21,666.13,0.30024169]
[1746939761332,0.24417075,667.2,666.13,0.30024169]
[1746939762031,0.24417075,667.19,666.13,0.30024169]
[1746939762334,0.24417075,667.22,666.13,0.30024169]
[1746939763231,0.26104568,667.21,666.13,0.30024169]
[1746939763431,0.50521643,667.21,666.13,0.30024169]
[1746939763631,0.24417075,667.2,666.13,0.30024169]
[1746939771935,0.24417075,667.2,666.14,0.515]
[1746939772135,0.24417075,667.2,666.16,0.30022817]
[1746939772635,0.24417075,667.59,666.16,0.30022817]
[1746939772831,1.94388738,667.53,666.16,0.30022817]
[1746939773232,0.26100065,667.52,666.16,0.30022817]
[1746939773632,0.24418127,667.51,666.16,0.30022817]
[1746939774038,0.24418127,667.5,666.16,0.30022817]
[1746939774236,0.24418127,667.49,666.16,0.30022817]
[1746939774438,0.24418127,667.48,666.16,0.30022817]
[1746939774738,0.24418127,667.47,666.16,0.30022817]
[1746939775037,0.24418127,667.46,666.16,0.30022817]
[1746939775238,0.50518584,667.46,666.16,0.30022817]
[1746939775533,0.24418127,667.45,666.16,0.30022817]
[1746939775738,0.24418127,667.44,666.16,0.30022817]
[1746939776132,0.24418127,667.43,666.16,0.30022817]
[1746939776436,0.24418127,667.42,666.16,0.30022817]
[1746939776838,0.24418127,667.45,666.16,0.30022817]
[1746939777041,0.24418127,667.45,666.17,1.16517993]
[1746939777232,0.24418127,667.45,666.19,0.30021465]
[1746939777638,0.24418127,667.45,666.2,1.16517993]
[1746939777836,0.24418127,667.45,666.22,0.30020113]
[1746939778038,0.24418127,667.45,666.23,1.16517993]
[1746939778236,0.26096542,667.44,666.25,0.30018761]
[1746939778541,0.24418127,667.43,666.26,1.16517993]
[1746939778837,0.24418127,667.43,666.28,0.3001741]
[1746939780543,0.24418127,667.43,666.29,1.16349203]
[1746939781144,0.24418127,667.42,666.29,1.16349203]
[1746939781344,0.5050743,667.42,666.3,1.16349203]
[1746939781546,0.26089303,667.42,666.3,1.16349203]
[1746939781840,0.24418127,667.41,666.31,1.16349203]
[1746939782539,0.24418127,667.41,666.32,1.16349203]
[1746939782742,0.24418127,667.41,666.34,0.30014707]
[1746939783044,0.24418127,667.41,666.35,1.16168318]
[1746939783245,0.24418127,667.41,666.34,0.30014707]
[1746939784045,0.24418127,667.93,666.34,0.30014707]
[1746939784242,0.26087152,667.53,666.35,1.16063483]
[1746939784446,0.26087152,667.53,666.37,0.30013355]
[1746939784746,1.94388738,667.68,666.37,0.30013355]
[1746939784945,0.24418127,667.52,666.37,0.30013355]
[1746939785245,0.24418127,667.67,666.37,0.30013355]
[1746939785546,0.26089206,667.52,666.37,0.30013355]
[1746939785741,0.24418127,667.66,666.37,0.30013355]
[1746939785944,0.24418127,667.65,666.37,0.30013355]
[1746939786345,0.24418127,667.64,666.37,0.30013355]
[1746939786741,0.24418127,667.63,666.37,0.30013355]
[1746939786945,0.24418127,667.65,666.37,0.30013355]
[1746939788946,0.24418127,667.65,666.38,0.518]
[1746939789247,0.24418127,667.65,666.4,0.30012004]
[1746939793356,0.26081091,667.64,666.4,0.30012004]
[1746939793551,0.24418127,667.63,666.4,0.30012004]
[1746939796251,0.26081091,667.62,666.4,0.30012004]
[1746939796654,0.24418127,667.61,666.4,0.30012004]
[1746939797551,0.26081091,667.62,666.4,0.30012004]
[1746939797855,0.24402392,667.61,666.4,0.30012004]
[1746939799551,0.26079723,667.63,666.4,0.29264084]
[1746939799756,0.24402392,667.6,666.4,0.29264084]
[1746939800053,0.24402392,667.6,666.41,1.15314699]
[1746939800257,0.24402392,667.62,666.43,0.30010653]
[1746939800556,0.26079723,667.63,666.43,0.30010653]
[1746939800952,0.24362523,667.62,666.43,0.30010653]
[1746939802562,0.26079039,667.63,666.43,0.30010653]
[1746939802759,0.24362523,667.62,666.43,0.30010653]
[1746939805261,0.24362523,667.62,666.43,1.00110653]
[1746939806157,0.26079039,667.63,666.43,1.00110653]
[1746939806663,0.24366029,667.62,666.43,1.00110653]
[1746939808563,0.24366029,668.42,666.43,1.00110653]
[1746939808961,0.24366029,668.41,666.43,1.00110653]
[1746939809163,0.24366029,668.4,666.43,1.00110653]
[1746939809460,1.94388738,668.35,666.43,1.00110653]
[1746939809763,0.24366029,668.34,666.43,1.00110653]
[1746939810264,0.24366029,668.33,666.43,1.00110653]
[1746939810960,0.24366029,668.32,666.43,1.00110653]
[1746939811166,0.50444091,668.32,666.43,1.00110653]
[1746939811365,0.24366029,668.31,666.43,1.00110653]
[1746939811665,1.94388738,668.24,666.44,1.15061786]
[1746939811865,1.94388738,668.24,666.46,0.30009302]
[1746939812065,0.24366029,668.23,666.47,1.15061786]
[1746939812265,0.24366029,668.23,666.49,0.30007952]
[1746939812560,0.24366029,668.22,666.5,1.15061786]
[1746939812765,0.24366029,668.22,666.52,0.30006601]
[1746939813066,0.24366029,668.21,666.53,1.15061786]
[1746939813367,0.24366029,668.21,666.55,0.3000525]
[1746939813562,0.24366029,668.23,666.56,1.15061786]
[1746939813762,0.24366029,668.23,666.58,0.300039]
[1746939813968,0.24366029,668.23,666.59,1.15061786]
[1746939813969,1.94388738,668.2,666.59,1.15061786]
[1746939814268,1.94388738,668.2,666.61,0.3000255]
[1746939814461,0.24366029,668.19,666.61,0.3000255]
[1746939814662,0.24366029,668.19,666.62,1.15061786]
[1746939814867,0.24366029,668.19,666.64,0.300012]
[1746939815463,0.24366029,668.19,666.65,1.15061786]
[1746939815764,0.24366029,668.19,666.67,0.2999985]
[1746939816669,0.24366029,668.31,666.67,0.2999985]
[1746939817266,0.24366029,668.47,666.67,0.2999985]
[1746939817464,0.26071029,668.3,666.67,0.2999985]
[1746939817668,0.24366029,668.29,666.67,0.2999985]
[1746939818071,0.24366029,668.47,666.67,0.2999985]
[1746939818468,0.24366029,668.46,666.67,0.2999985]
[1746939818771,0.24366029,668.45,666.67,0.2999985]
[1746939818968,1.94388738,668.42,666.67,0.2999985]
[1746939819173,0.24366029,668.41,666.67,0.2999985]
[1746939819578,0.24366029,668.4,666.67,0.2999985]
[1746939819873,0.24366029,668.39,666.67,0.2999985]
[1746939820376,0.50439402,668.38,666.67,0.2999985]
[1746939820575,0.24366029,668.37,666.67,0.2999985]
[1746939820975,0.24366029,668.36,666.67,0.2999985]
[1746939821272,0.24366029,668.35,666.67,0.2999985]
[1746939821672,0.24366029,668.34,666.67,0.2999985]
[1746939821977,0.24366029,668.33,666.67,0.2999985]
[1746939822281,0.24366029,668.32,666.67,0.2999985]
[1746939822681,0.26073373,668.38,666.67,0.2999985]
[1746939822682,0.24366029,668.31,666.67,0.2999985]
[1746939822981,0.24366029,668.3,666.67,0.2999985]
[1746939823576,0.24366029,668.29,666.67,0.2999985]
[1746939823982,0.24366029,668.28,666.67,0.2999985]
[1746939824179,0.24366029,668.27,666.67,0.2999985]
[1746939824583,0.24366029,668.26,666.67,0.2999985]
[1746939824883,0.24366029,668.25,666.67,0.2999985]
[1746939825184,0.24366029,668.24,666.67,0.2999985]
[1746939825487,0.24366029,668.23,666.67,0.2999985]
[1746939825785,1.94388738,668.04,666.67,0.2999985]
[1746939826286,0.24356797,668.03,666.67,0.2999985]
[1746939826686,0.24356797,668.02,666.67,0.2999985]
[1746939826985,0.24356797,668.01,666.67,0.2999985]
[1746939827281,0.5043525,668.01,666.67,0.2999985]
[1746939827491,0.24356797,668.0,666.67,0.2999985]
[1746939827785,0.24356797,667.99,666.67,0.2999985]
[1746939828085,0.26078453,668.01,666.67,0.2999985]
[1746939828280,0.24357971,668.0,666.67,0.2999985]
[1746939829388,0.24357971,668.15,666.67,0.2999985]
[1746939829782,0.24357971,668.14,666.67,0.2999985]
[1746939830086,0.24357971,668.13,666.67,0.2999985]
[1746939830286,0.5043486,668.13,666.67,0.2999985]
[1746939830484,0.24357971,668.12,666.67,0.2999985]
[1746939830789,0.24357971,668.12,666.68,0.669]
[1746939830983,0.24357971,668.11,666.7,0.299985]
[1746939831386,0.24357971,668.1,666.7,0.299985]
[1746939831685,0.24357971,668.09,666.7,0.299985]
[1746939831986,0.24357971,668.08,666.7,0.299985]
[1746939832487,0.24357971,668.07,666.7,0.299985]
[1746939832986,0.24357971,668.06,666.7,0.299985]
[1746939833187,0.24357971,668.05,666.7,0.299985]
[1746939833586,0.24357971,668.04,666.7,0.299985]
[1746939834086,0.24357971,668.03,666.7,0.299985]
[1746939834387,0.24357971,668.02,666.7,0.299985]
[1746939834887,0.24357971,668.05,666.7,0.299985]
[1746939835290,0.24357971,668.04,666.7,0.299985]
[1746939835491,0.50434274,668.04,666.7,0.299985]
[1746939835690,0.24357971,668.03,666.7,0.299985]
[1746939835990,0.24357971,668.02,666.7,0.299985]
[1746939836387,0.24357971,668.01,666.7,0.299985]
[1746939836786,0.24357971,668.03,666.7,0.299985]
[1746939837090,0.24357971,668.02,666.7,0.299985]
[1746939837386,0.24357971,668.01,666.7,0.299985]
[1746939837791,0.24357971,668.0,666.7,0.299985]
[1746939838090,0.24357971,667.99,666.7,0.299985]
[1746939838293,0.50434958,667.99,666.7,0.299985]
[1746939838591,0.24357971,667.98,666.7,0.299985]
[1746939838986,0.24357971,667.97,666.7,0.299985]
[1746939839392,0.24357971,667.96,666.7,0.299985]
[1746939839793,0.24357971,667.95,666.7,0.299985]
[1746939840092,0.24357971,667.94,666.7,0.299985]
[1746939840393,0.24357971,667.93,666.7,0.299985]
[1746939840888,0.24357971,667.92,666.7,0.299985]
[1746939841289,0.50434176,667.91,666.7,0.299985]
[1746939841596,0.24357971,667.9,666.7,0.299985]
[1746939841895,0.26076205,667.91,666.7,0.299985]
[1746939842297,0.24357113,667.9,666.7,0.299985]
[1746939842592,0.24357113,667.89,666.7,0.299985]
[1746939843001,0.24357113,667.88,666.7,0.299985]
[1746939843398,0.24357113,667.9,666.7,0.299985]
[1746939847303,0.26076792,667.89,666.7,0.299985]
[1746939847704,0.24357113,667.88,666.7,0.299985]
[1746939850305,0.26076987,667.87,666.7,0.299985]
[1746939850908,0.24357113,667.86,666.7,0.299985]
[1746939853209,0.24357113,667.97,666.7,0.299985]
[1746939853410,0.26077182,667.85,666.7,0.299985]
[1746939853608,0.24357113,667.97,666.7,0.299985]
[1746939854810,0.26077182,667.96,666.7,0.299985]
[1746939855110,0.24357113,667.95,666.7,0.299985]
[1746939855810,0.24357113,667.95,666.71,0.555]
[1746939856009,0.24357113,667.95,666.73,0.2999715]
[1746939856405,0.26076792,667.94,666.73,0.2999715]
[1746939856708,0.24357113,667.93,666.73,0.2999715]
[1746939858612,0.26076792,667.94,666.73,0.2999715]
[1746939859110,0.24360172,667.93,666.73,0.2999715]
[1746939859412,0.5043882,667.93,666.73,0.2999715]
[1746939859812,0.24360172,667.92,666.73,0.2999715]
[1746939864215,0.24360172,667.91,666.73,0.2999715]
[1746939864514,0.24360172,667.9,666.73,0.2999715]
[1746939864914,0.24360172,667.89,666.73,0.2999715]
[1746939865213,0.50439993,667.89,666.73,0.2999715]
[1746939865514,0.24360172,667.88,666.73,0.2999715]
[1746939866014,0.24360172,667.87,666.73,0.2999715]
[1746939866514,0.24360172,667.86,666.73,0.2999715]
[1746939867014,0.24360172,667.85,666.73,0.2999715]
[1746939867414,0.24360172,667.84,666.73,0.2999715]
[1746939867714,0.24360172,667.83,666.73,0.2999715]
[1746939868411,0.2608246,667.82,666.73,0.2999715]
[1746939868713,0.50442632,667.82,666.73,0.2999715]
[1746939869217,0.24360172,667.81,666.73,0.2999715]
[1746939869517,0.24360172,667.8,666.73,0.2999715]
[1746939869817,0.2608246,667.82,666.73,0.2999715]
[1746939870318,0.24367141,667.81,666.73,0.2999715]
[1746939870517,0.24367141,667.8,666.73,0.2999715]
[1746939870918,0.24367141,667.79,666.73,0.2999715]
[1746939871312,0.24367141,667.78,666.73,0.2999715]
[1746939871521,0.5045048,667.78,666.73,0.2999715]
[1746939871820,0.24367141,667.77,666.73,0.2999715]
[1746939872215,0.24367141,667.76,666.73,0.2999715]
[1746939872520,0.24367141,667.75,666.73,0.2999715]
[1746939873022,2.18755879,667.74,666.73,0.2999715]
[1746939873320,0.24367141,667.73,666.73,0.2999715]
[1746939873716,0.24367141,667.72,666.73,0.2999715]
[1746939874419,0.50452338,667.71,666.73,0.2999715]
[1746939874722,0.24367141,667.7,666.73,0.2999715]
[1746939875021,0.24367141,667.69,666.73,0.2999715]
[1746939875621,0.24367141,667.68,666.73,0.2999715]
[1746939876221,0.24367141,667.67,666.73,0.2999715]
[1746939876517,0.24367141,667.66,666.73,0.2999715]
[1746939876818,0.24367141,667.65,666.73,0.2999715]
[1746939877223,0.24367141,667.64,666.73,0.2999715]
[1746939877423,0.24367141,667.63,666.73,0.2999715]
[1746939877822,0.24367141,667.62,666.73,0.2999715]
[1746939878721,0.24367141,667.61,666.73,0.2999715]
[1746939879122,0.24367141,667.63,666.73,0.2999715]
[1746939881121,0.24367141,667.65,666.73,0.2999715]
[1746939881327,0.26085783,667.62,666.73,0.2999715]
[1746939881926,0.24367141,667.61,666.73,0.2999715]
[1746939884026,0.26085783,667.62,666.73,0.2999715]